[Event "MČR juniorů a juniorek v rapid šachu 2023"]
[Site "Czech Republic"]
[Date "2023.09.23"]
[Round "5.13"]
[White "Garabik, Marek"]
[Black "Housa, Jan"]
[Result "1-0"]
[TimeControl "20 min + 5 sec per move"]
[WhiteFideId "23717742"]
[BlackFideId "23736356"]
[WhiteElo "1787"]
[BlackElo "1439"]

1. e4 {[%clk 00:20:08]} {[%emt 00:00:02]} c6 {[%clk 00:20:09]} {[%emt
00:00:02]} 2. d4 {[%clk 00:20:11]} d5 {[%clk 00:20:13]} {[%emt 00:00:01]} 3. f3
{[%clk 00:20:15]} dxe4 {[%clk 00:20:17]} {[%emt 00:00:01]} 4. fxe4 {[%clk
00:20:19]} e5 {[%clk 00:20:21]} 5. Nf3 {[%clk 00:20:24]} Bg4 {[%clk 00:20:24]}
{[%emt 00:00:02]} 6. c3 {[%clk 00:19:46]} {[%emt 00:00:42]} Nd7 {[%clk
00:20:18]} {[%emt 00:00:11]} 7. Bc4 {[%clk 00:19:33]} {[%emt 00:00:18]} Ngf6
{[%clk 00:20:13]} {[%emt 00:00:10]} 8. Bg5 {[%clk 00:19:31]} {[%emt 00:00:07]}
Be7 {[%clk 00:19:30]} {[%emt 00:00:48]} 9. Nbd2 {[%clk 00:19:26]} {[%emt
00:00:10]} Qc7 {[%clk 00:19:03]} {[%emt 00:00:33]} 10. Qb3 {[%clk 00:19:07]}
{[%emt 00:00:23]} O-O-O {[%clk 00:18:29]} {[%emt 00:00:39]} 11. Bxf7 {[%clk
00:17:45]} {[%emt 00:01:28]} Bxf3 {[%clk 00:17:04]} {[%emt 00:01:29]} 12. gxf3
{[%clk 00:17:39]} {[%emt 00:00:11]} h6 {[%clk 00:16:15]} {[%emt 00:00:55]} 13.
Be3 {[%clk 00:17:03]} {[%emt 00:00:40]} Rhf8 {[%clk 00:15:40]} {[%emt
00:00:41]} 14. O-O-O {[%clk 00:15:52]} {[%emt 00:01:15]} exd4 {[%clk 00:14:52]}
{[%emt 00:00:54]} 15. cxd4 {[%clk 00:14:58]} {[%emt 00:00:59]} c5 {[%clk
00:14:06]} {[%emt 00:00:51]} 16. Kb1 {[%clk 00:12:38]} {[%emt 00:02:24]} b5
{[%clk 00:13:38]} {[%emt 00:00:33]} 17. e5 {[%emt 00:01:09]} c4 {[%clk
00:12:31]} {[%emt 00:00:58]} 18. Qxb5 {[%clk 00:11:04]} {[%emt 00:00:49]} Rxf7
{[%clk 00:12:20]} {[%emt 00:00:15]} 19. exf6 {[%clk 00:11:06]} {[%emt
00:00:03]} Nxf6 {[%clk 00:11:21]} {[%emt 00:01:04]} 20. Qxc4 {[%clk 00:10:51]}
{[%emt 00:00:21]} Qxc4 {[%clk 00:10:59]} {[%emt 00:00:27]} 21. Nxc4 {[%clk
00:10:55]} Nd5 {[%clk 00:10:52]} {[%emt 00:00:12]} 22. Ne5 {[%clk 00:09:34]}
{[%emt 00:01:26]} Rf6 {[%clk 00:10:36]} {[%emt 00:00:21]} 23. Bf2 {[%clk
00:09:14]} {[%emt 00:00:24]} Bd6 {[%clk 00:10:26]} {[%emt 00:00:16]} 24. Bg3
{[%clk 00:07:45]} {[%emt 00:01:33]} Ne3 {[%clk 00:09:51]} {[%emt 00:00:40]} 25.
Rc1+ {[%clk 00:07:32]} {[%emt 00:00:18]} Kb7 {[%clk 00:09:52]} {[%emt
00:00:04]} 26. f4 {[%clk 00:06:56]} {[%emt 00:00:41]} Nf5 {[%clk 00:09:36]}
{[%emt 00:00:21]} 27. Rhd1 {[%clk 00:06:35]} {[%emt 00:00:27]} Ne3 {[%clk
00:09:25]} {[%emt 00:00:16]} 28. Rd3 {[%clk 00:06:33]} {[%emt 00:00:06]} Nd5
{[%clk 00:09:02]} {[%emt 00:00:28]} 29. Bh4 {[%clk 00:06:28]} {[%emt 00:00:10]}
g5 {[%clk 00:08:33]} {[%emt 00:00:35]} 30. fxg5 {[%clk 00:06:20]} {[%emt
00:00:13]} Rf4 {[%clk 00:08:19]} {[%emt 00:00:19]} 31. Bg3 {[%clk 00:05:48]}
{[%emt 00:00:37]} Bxe5 {[%clk 00:07:36]} {[%emt 00:00:48]} 32. dxe5 {[%clk
00:05:22]} {[%emt 00:00:31]} hxg5 {[%clk 00:07:13]} {[%emt 00:00:28]} 33. Bxf4
{[%clk 00:05:18]} {[%emt 00:00:09]} gxf4 {[%clk 00:07:15]} {[%emt 00:00:02]} 34.
Rc5 {[%clk 00:03:38]} {[%emt 00:01:45]} f3 {[%clk 00:06:52]} {[%emt 00:00:28]}
35. Rxf3 {[%clk 00:03:38]} {[%emt 00:00:05]} Ne7 {[%clk 00:06:45]} {[%emt
00:00:12]} 36. Rf7 {[%clk 00:03:41]} {[%emt 00:00:02]} Re8 {[%clk 00:06:48]}
{[%emt 00:00:03]} 37. Rd5 {[%clk 00:03:37]} {[%emt 00:00:09]} Kc6 {[%clk
00:06:49]} {[%emt 00:00:03]} 38. Rd6+ {[%clk 00:03:41]} {[%emt 00:00:01]} Kc7
{[%clk 00:06:51]} {[%emt 00:00:03]} 39. Re6 {[%clk 00:03:43]} {[%emt 00:00:04]}
Kd7 {[%clk 00:06:55]} {[%emt 00:00:01]} 40. Rexe7+ {[%clk 00:03:42]} {[%emt
00:00:06]} Rxe7 {[%clk 00:06:58]} 41. Rxe7+ {[%clk 00:03:46]} {[%emt 00:00:01]}
Kxe7 {[%clk 00:07:01]} {[%emt 00:00:02]} 42. Kc2 {[%clk 00:03:50]} 1-0

[Event "MČR juniorů a juniorek v rapid šachu 2023"]
[Site "Czech Republic"]
[Date "2023.09.23"]
[Round "5.14"]
[White "Novotny, Dominik"]
[Black "Rucabado, Stefan"]
[Result "0-1"]
[TimeControl "20 min + 5 sec per move"]
[WhiteFideId "23755601"]
[BlackFideId "23730315"]
[WhiteElo "1707"]
[BlackElo "1782"]

1. e4 {[%clk 00:20:08]} {[%emt 00:00:02]} g6 {[%clk 00:19:47]} {[%emt
00:00:24]} 2. d4 {[%clk 00:20:10]} {[%emt 00:00:03]} Bg7 {[%clk 00:19:51]} 3.
Nc3 {[%clk 00:20:11]} {[%emt 00:00:05]} a6 {[%clk 00:19:55]} 4. Be3 {[%clk
00:20:03]} {[%emt 00:00:14]} b5 {[%clk 00:19:59]} {[%emt 00:00:02]} 5. Qd2
{[%clk 00:19:07]} {[%emt 00:01:01]} Bb7 {[%clk 00:20:01]} {[%emt 00:00:02]} 6.
f3 {[%clk 00:19:08]} {[%emt 00:00:04]} d6 {[%clk 00:19:56]} {[%emt 00:00:10]} 7.
Nge2 {[%clk 00:18:26]} {[%emt 00:00:47]} Nd7 {[%clk 00:19:54]} {[%emt
00:00:07]} 8. h4 {[%clk 00:16:54]} {[%emt 00:01:37]} c5 {[%emt 00:00:55]} 9. h5
{[%clk 00:16:36]} b4 {[%clk 00:18:37]} {[%emt 00:00:54]} 10. Na4 {[%clk
00:16:15]} {[%emt 00:00:26]} Bc6 {[%clk 00:18:16]} {[%emt 00:00:26]} 11. dxc5
{[%clk 00:11:27]} {[%emt 00:04:53]} Bxa4 {[%clk 00:17:18]} {[%emt 00:01:04]} 12.
Qxb4 {[%clk 00:10:43]} {[%emt 00:00:49]} Bb5 {[%clk 00:17:07]} {[%emt
00:00:15]} 13. cxd6 {[%clk 00:10:11]} {[%emt 00:00:37]} Rb8 {[%clk 00:16:17]}
{[%emt 00:00:56]} 14. Qd2 {[%clk 00:08:21]} {[%emt 00:01:54]} exd6 {[%clk
00:13:43]} {[%emt 00:02:38]} 15. Qxd6 {[%clk 00:06:51]} {[%emt 00:01:37]} Ne5
{[%clk 00:11:59]} {[%emt 00:01:48]} 16. Qxd8+ {[%clk 00:04:35]} {[%emt
00:02:21]} Rxd8 {[%clk 00:12:02]} {[%emt 00:00:02]} 17. Nc3 {[%clk 00:03:10]}
{[%emt 00:01:31]} Bxf1 {[%clk 00:11:16]} {[%emt 00:00:50]} 18. Rxf1 {[%clk
00:03:10]} {[%emt 00:00:05]} Nc4 {[%clk 00:11:16]} {[%emt 00:00:05]} 19. Bc1
{[%clk 00:02:35]} {[%emt 00:00:41]} Ne7 {[%clk 00:11:07]} {[%emt 00:00:14]} 20.
Rb1 {[%clk 00:02:03]} {[%emt 00:00:36]} Rb8 {[%clk 00:10:37]} {[%emt 00:00:35]}
21. Na4 {[%clk 00:01:44]} {[%emt 00:00:25]} Na3 {[%clk 00:10:08]} {[%emt
00:00:34]} 22. bxa3 {[%clk 00:00:43]} {[%emt 00:01:07]} Rxb1 {[%clk 00:10:11]}
{[%emt 00:00:02]} 23. Ke2 {[%clk 00:00:39]} {[%emt 00:00:08]} Ra1 {[%clk
00:09:36]} {[%emt 00:00:39]} 24. Rd1 {[%clk 00:00:00]} {[%emt 00:00:40]} 0-1

[Event "MČR juniorů a juniorek v rapid šachu 2023"]
[Site "Czech Republic"]
[Date "2023.09.23"]
[Round "5.15"]
[White "Rybackova, Lucie"]
[Black "Dvorak, Jan"]
[Result "1-0"]
[TimeControl "20 min + 5 sec per move"]
[WhiteFideId "23739207"]
[BlackFideId "23730722"]
[WhiteElo "1768"]
[BlackElo "1624"]

1. d4 {[%clk 00:20:08]} Nf6 {[%clk 00:20:08]} {[%emt 00:00:02]} 2. Nf3 {[%clk
00:20:12]} {[%emt 00:00:02]} e6 {[%clk 00:20:05]} {[%emt 00:00:08]} 3. g3
{[%clk 00:20:14]} {[%emt 00:00:03]} d5 {[%clk 00:19:43]} {[%emt 00:00:27]} 4.
Bg2 {[%clk 00:20:16]} {[%emt 00:00:02]} c5 {[%clk 00:19:22]} {[%emt 00:00:27]}
5. O-O {[%clk 00:20:15]} {[%emt 00:00:06]} Nc6 {[%clk 00:19:23]} {[%emt
00:00:05]} 6. c4 {[%clk 00:20:12]} {[%emt 00:00:08]} dxc4 {[%clk 00:18:49]}
{[%emt 00:00:39]} 7. Qa4 {[%clk 00:20:14]} {[%emt 00:00:02]} Qb6 {[%clk
00:17:56]} {[%emt 00:00:59]} 8. Ne5 {[%clk 00:19:25]} {[%emt 00:00:53]} Bd7
{[%clk 00:16:49]} {[%emt 00:01:12]} 9. Nxd7 {[%clk 00:19:24]} {[%emt 00:00:06]}
Nxd7 {[%clk 00:16:52]} {[%emt 00:00:02]} 10. d5 {[%clk 00:17:42]} {[%emt
00:01:47]} Nd4 {[%clk 00:15:25]} {[%emt 00:01:33]} 11. Nc3 {[%clk 00:17:15]}
{[%emt 00:00:32]} Qb4 {[%clk 00:14:01]} {[%emt 00:01:28]} 12. dxe6 {[%clk
00:15:24]} {[%emt 00:01:56]} fxe6 {[%clk 00:11:29]} {[%emt 00:02:36]} 13. Qd1
{[%clk 00:12:48]} {[%emt 00:02:40]} Be7 {[%clk 00:11:02]} {[%emt 00:00:34]} 14.
e3 {[%clk 00:12:39]} {[%emt 00:00:14]} Nc6 {[%clk 00:10:37]} {[%emt 00:00:29]}
15. Qg4 {[%clk 00:12:22]} {[%emt 00:00:21]} O-O-O {[%clk 00:09:33]} {[%emt
00:01:11]} 16. Bxc6 {[%clk 00:12:03]} {[%emt 00:00:23]} bxc6 {[%clk 00:08:56]}
{[%emt 00:00:43]} 17. Qxe6 {[%clk 00:12:05]} {[%emt 00:00:03]} Bf6 {[%clk
00:07:47]} {[%emt 00:01:14]} 18. Qxc6+ {[%clk 00:11:57]} {[%emt 00:00:12]} Kb8
{[%clk 00:07:50]} {[%emt 00:00:03]} 19. Nb5 {[%clk 00:10:15]} {[%emt 00:01:47]}
Qa5 {[%clk 00:06:47]} {[%emt 00:01:08]} 20. Nd6 {[%clk 00:09:15]} {[%emt
00:01:04]} Qb6 {[%clk 00:05:52]} {[%emt 00:01:01]} 21. Qxb6+ {[%clk 00:09:18]}
{[%emt 00:00:02]} axb6 {[%clk 00:05:56]} {[%emt 00:00:02]} 22. Nf7 {[%clk
00:09:21]} {[%emt 00:00:02]} Ne5 {[%clk 00:05:43]} {[%emt 00:00:17]} 23. Nxh8
{[%clk 00:09:19]} {[%emt 00:00:07]} Rxh8 {[%clk 00:05:47]} {[%emt 00:00:02]} 24.
e4 {[%clk 00:08:34]} {[%emt 00:00:50]} Nd3 {[%clk 00:05:27]} {[%emt 00:00:24]}
25. Rb1 {[%clk 00:07:34]} {[%emt 00:01:06]} Kb7 {[%clk 00:05:07]} {[%emt
00:00:25]} 26. Rd1 {[%clk 00:05:36]} {[%emt 00:02:01]} Kc6 {[%clk 00:03:31]}
{[%emt 00:01:41]} 27. Bf4 {[%clk 00:04:28]} {[%emt 00:01:14]} g5 {[%clk
00:02:31]} {[%emt 00:01:05]} 28. e5 {[%clk 00:03:58]} {[%emt 00:00:35]} Bd8
{[%clk 00:01:17]} {[%emt 00:01:18]} 29. Bd2 {[%clk 00:02:52]} {[%emt 00:01:05]}
Rf8 {[%clk 00:00:23]} {[%emt 00:01:05]} 30. Be3 {[%clk 00:01:58]} {[%emt
00:00:59]} Nxe5 {[%clk 00:00:16]} {[%emt 00:00:13]} 31. b3 {[%clk 00:01:26]}
{[%emt 00:00:38]} c3 {[%clk 00:00:11]} {[%emt 00:00:10]} 32. Rbc1 {[%clk
00:01:26]} {[%emt 00:00:04]} Nf3+ {[%clk 00:00:09]} {[%emt 00:00:07]} 33. Kg2
{[%clk 00:01:28]} {[%emt 00:00:03]} Be7 {[%clk 00:00:08]} {[%emt 00:00:06]} 34.
Rxc3 {[%clk 00:01:20]} {[%emt 00:00:13]} g4 {[%clk 00:00:12]} {[%emt 00:00:02]}
35. Rcd3 {[%clk 00:01:08]} {[%emt 00:00:16]} Bf6 {[%clk 00:00:08]} {[%emt
00:00:09]} 36. Rd6+ {[%clk 00:01:05]} {[%emt 00:00:07]} Kb5 {[%clk 00:00:17]}
{[%emt 00:00:02]} 37. h3 {[%clk 00:01:02]} {[%emt 00:00:13]} h5 {[%clk
00:00:18]} {[%emt 00:00:04]} 38. Rd7 {[%clk 00:00:50]} {[%emt 00:00:17]} Bc3
{[%clk 00:00:20]} {[%emt 00:00:03]} 39. Rh7 {[%clk 00:00:28]} {[%emt 00:00:25]}
Ne1+ {[%clk 00:00:23]} {[%emt 00:00:04]} 40. Kf1 {[%clk 00:00:31]} {[%emt
00:00:01]} Nf3 {[%clk 00:00:10]} {[%emt 00:00:19]} 41. Rxh5 {[%clk 00:00:33]}
{[%emt 00:00:03]} gxh3 {[%clk 00:00:11]} {[%emt 00:00:04]} 42. Rxh3 {[%clk
00:00:35]} {[%emt 00:00:04]} Ra8 {[%clk 00:00:09]} {[%emt 00:00:06]} 43. Rc1
{[%clk 00:00:25]} {[%emt 00:00:15]} Bb2 {[%clk 00:00:07]} {[%emt 00:00:07]} 44.
Rc2 {[%clk 00:00:26]} {[%emt 00:00:04]} Be5 {[%clk 00:00:08]} {[%emt 00:00:03]}
45. Bf4 {[%clk 00:00:24]} {[%emt 00:00:06]} Bd4 {[%clk 00:00:10]} {[%emt
00:00:05]} 46. g4 {[%clk 00:00:24]} {[%emt 00:00:05]} Re8 {[%clk 00:00:14]}
{[%emt 00:00:02]} 47. Rxf3 {[%clk 00:00:27]} {[%emt 00:00:02]} 1-0

[Event "MČR juniorů a juniorek v rapid šachu 2023"]
[Site "Czech Republic"]
[Date "2023.09.23"]
[Round "5.16"]
[White "Mrkvan, Frantisek"]
[Black "Nagyova, Daniela"]
[Result "1/2-1/2"]
[TimeControl "20 min + 5 sec per move"]
[WhiteFideId "23721626"]
[BlackFideId "390070"]
[WhiteElo "1601"]
[BlackElo "1762"]

1. e4 {[%clk 00:20:06]} {[%emt 00:00:03]} e5 {[%clk 00:20:09]} {[%emt
00:00:02]} 2. Nf3 {[%clk 00:20:03]} {[%emt 00:00:08]} Nc6 {[%clk 00:20:12]}
{[%emt 00:00:02]} 3. Bc4 {[%clk 00:19:59]} {[%emt 00:00:09]} Nf6 {[%clk
00:20:12]} {[%emt 00:00:04]} 4. Ng5 {[%clk 00:19:31]} {[%emt 00:00:33]} d5
{[%clk 00:20:13]} {[%emt 00:00:04]} 5. exd5 {[%clk 00:19:34]} {[%emt 00:00:03]}
b5 {[%clk 00:20:11]} {[%emt 00:00:07]} 6. Bf1 {[%clk 00:17:41]} {[%emt
00:01:58]} Nd4 {[%clk 00:20:13]} {[%emt 00:00:03]} 7. c3 {[%clk 00:17:44]}
{[%emt 00:00:01]} Nxd5 {[%clk 00:20:16]} {[%emt 00:00:02]} 8. cxd4 {[%clk
00:17:47]} {[%emt 00:00:03]} Qxg5 {[%clk 00:20:00]} {[%emt 00:00:20]} 9. Bxb5+
{[%clk 00:17:43]} {[%emt 00:00:09]} Kd8 {[%clk 00:19:33]} {[%emt 00:00:33]} 10.
O-O {[%clk 00:17:13]} {[%emt 00:00:35]} Bb7 {[%clk 00:18:32]} {[%emt 00:01:06]}
11. Qf3 {[%clk 00:16:38]} {[%emt 00:00:40]} exd4 {[%clk 00:17:13]} {[%emt
00:01:23]} 12. d3 {[%clk 00:14:20]} {[%emt 00:02:23]} Qg6 {[%clk 00:16:45]}
{[%emt 00:00:33]} 13. Re1 {[%clk 00:11:57]} {[%emt 00:02:29]} Bd6 {[%clk
00:16:19]} {[%emt 00:00:31]} 14. Nd2 {[%clk 00:11:22]} {[%emt 00:00:40]} Rb8
{[%clk 00:12:12]} {[%emt 00:04:12]} 15. Ne4 {[%clk 00:07:18]} {[%emt 00:04:08]}
Nb4 {[%clk 00:09:01]} {[%emt 00:03:17]} 16. Qe2 {[%clk 00:03:23]} {[%emt
00:04:00]} Bxe4 {[%clk 00:05:54]} {[%emt 00:03:12]} 17. dxe4 {[%clk 00:03:21]}
{[%emt 00:00:07]} Nc2 {[%clk 00:03:19]} {[%emt 00:02:39]} 18. Qxc2 {[%clk
00:02:56]} {[%emt 00:00:31]} Rxb5 {[%clk 00:03:23]} {[%emt 00:00:01]} 19. Qd3
{[%clk 00:02:48]} {[%emt 00:00:13]} Rh5 {[%clk 00:02:57]} {[%emt 00:00:31]} 20.
h3 {[%clk 00:02:24]} {[%emt 00:00:29]} Re8 {[%clk 00:02:22]} {[%emt 00:00:40]}
21. b3 {[%clk 00:02:02]} {[%emt 00:00:27]} f5 {[%clk 00:01:52]} {[%emt
00:00:36]} 22. e5 {[%clk 00:01:05]} {[%emt 00:01:01]} Bxe5 {[%clk 00:01:37]}
{[%emt 00:00:20]} 23. Bb2 {[%clk 00:01:04]} {[%emt 00:00:06]} Qd6 {[%clk
00:01:22]} {[%emt 00:00:19]} 24. Qf3 {[%clk 00:00:47]} {[%emt 00:00:22]} Rh6
{[%clk 00:00:42]} {[%emt 00:00:45]} 25. Bxd4 {[%clk 00:00:46]} {[%emt
00:00:07]} Bh2+ {[%clk 00:00:18]} {[%emt 00:00:29]} 26. Kh1 {[%clk 00:00:50]}
Rxe1+ {[%clk 00:00:19]} {[%emt 00:00:04]} 27. Rxe1 {[%clk 00:00:54]} {[%emt
00:00:02]} Re6 {[%clk 00:00:11]} {[%emt 00:00:12]} 28. Rd1 {[%clk 00:00:26]}
{[%emt 00:00:34]} Kc8 {[%clk 00:00:09]} {[%emt 00:00:06]} 29. Bc5 {[%clk
00:00:13]} {[%emt 00:00:18]} Qc6 {[%clk 00:00:07]} {[%emt 00:00:07]} 30. Qxf5
{[%clk 00:00:08]} {[%emt 00:00:10]} Be5 {[%clk 00:00:10]} {[%emt 00:00:02]} 31.
Qf8+ {[%clk 00:00:12]} {[%emt 00:00:02]} Kb7 {[%clk 00:00:14]} 32. b4 {[%clk
00:00:11]} {[%emt 00:00:06]} Bf6 {[%clk 00:00:11]} {[%emt 00:00:07]} 33. Qf7
{[%clk 00:00:11]} {[%emt 00:00:06]} Re2 {[%clk 00:00:13]} {[%emt 00:00:02]} 34.
Qc4 {[%clk 00:00:14]} {[%emt 00:00:03]} Re4 {[%clk 00:00:15]} {[%emt 00:00:03]}
35. Qd3 {[%clk 00:00:13]} {[%emt 00:00:06]} Re6 {[%clk 00:00:15]} {[%emt
00:00:05]} 36. Rc1 {[%clk 00:00:14]} {[%emt 00:00:04]} Qe8 {[%clk 00:00:16]}
{[%emt 00:00:04]} 37. b5 {[%clk 00:00:09]} {[%emt 00:00:11]} Re1+ {[%clk
00:00:19]} 38. Rxe1 {[%clk 00:00:12]} {[%emt 00:00:02]} Qxe1+ {[%clk 00:00:23]}
{[%emt 00:00:02]} 39. Kh2 {[%clk 00:00:16]} Qe5+ {[%clk 00:00:23]} {[%emt
00:00:04]} 40. f4 {[%clk 00:00:06]} {[%emt 00:00:16]} Qxc5 {[%clk 00:00:25]}
{[%emt 00:00:03]} 41. a4 {[%clk 00:00:09]} {[%emt 00:00:02]} Qd4 {[%clk
00:00:26]} {[%emt 00:00:04]} 42. Qf3+ {[%clk 00:00:13]} {[%emt 00:00:01]} Kb8
{[%clk 00:00:29]} {[%emt 00:00:02]} 43. Qc6 {[%clk 00:00:13]} {[%emt 00:00:05]}
Qxf4+ {[%clk 00:00:30]} {[%emt 00:00:04]} 44. Kh1 {[%clk 00:00:17]} Qf1+ {[%clk
00:00:32]} {[%emt 00:00:03]} 45. Kh2 {[%clk 00:00:21]} {[%emt 00:00:02]} Be5+
{[%clk 00:00:36]} 46. g3 {[%clk 00:00:25]} {[%emt 00:00:02]} Qf2+ {[%clk
00:00:34]} {[%emt 00:00:05]} 47. Kh1 {[%clk 00:00:24]} {[%emt 00:00:06]} Qe1+
{[%clk 00:00:18]} {[%emt 00:00:21]} 48. Kg2 {[%clk 00:00:25]} {[%emt 00:00:04]}
Qxg3+ {[%clk 00:00:21]} {[%emt 00:00:02]} 49. Kf1 {[%clk 00:00:29]} Qf4+ {[%clk
00:00:23]} {[%emt 00:00:03]} 50. Ke2 {[%clk 00:00:32]} {[%emt 00:00:03]} Qd4
{[%clk 00:00:21]} {[%emt 00:00:06]} 51. Qe8+ {[%clk 00:00:34]} {[%emt
00:00:03]} Kb7 {[%clk 00:00:23]} {[%emt 00:00:03]} 52. Qc6+ {[%clk 00:00:39]}
Kc8 {[%clk 00:00:26]} {[%emt 00:00:02]} 53. Qe8+ {[%clk 00:00:41]} {[%emt
00:00:03]} Kb7 {[%clk 00:00:20]} {[%emt 00:00:10]} 54. Qc6+ {[%clk 00:00:45]}
Kc8 {[%clk 00:00:24]} {[%emt 00:00:02]} 55. Qe8+ {[%clk 00:00:49]} 1/2-1/2

[Event "MČR juniorů a juniorek v rapid šachu 2023"]
[Site "Czech Republic"]
[Date "2023.09.23"]
[Round "5.17"]
[White "Havelkova, Beata"]
[Black "Rybacek, Martin"]
[Result "0-1"]
[TimeControl "20 min + 5 sec per move"]
[WhiteFideId "23709405"]
[BlackFideId "23739266"]
[WhiteElo "1494"]
[BlackElo "1755"]

1. e4 {[%clk 00:20:08]} c6 {[%clk 00:20:08]} {[%emt 00:00:03]} 2. d4 {[%clk
00:20:11]} {[%emt 00:00:03]} d5 {[%clk 00:20:12]} 3. exd5 {[%clk 00:20:15]}
{[%emt 00:00:01]} cxd5 {[%clk 00:20:16]} 4. Bd3 {[%clk 00:20:17]} {[%emt
00:00:02]} Nc6 {[%clk 00:20:19]} {[%emt 00:00:03]} 5. c3 {[%clk 00:20:21]} Qc7
{[%clk 00:20:23]} 6. Na3 {[%clk 00:20:01]} {[%emt 00:00:24]} a6 {[%clk
00:19:18]} {[%emt 00:01:10]} 7. Nc2 {[%clk 00:19:49]} {[%emt 00:00:17]} Nf6
{[%clk 00:19:09]} {[%emt 00:00:14]} 8. Ne2 {[%clk 00:19:34]} {[%emt 00:00:19]}
Bg4 {[%clk 00:18:31]} {[%emt 00:00:43]} 9. f3 {[%clk 00:19:33]} {[%emt
00:00:07]} Bh5 {[%clk 00:17:56]} {[%emt 00:00:39]} 10. Nf4 {[%clk 00:18:56]}
{[%emt 00:00:42]} Bg6 {[%clk 00:17:35]} {[%emt 00:00:27]} 11. O-O {[%clk
00:17:39]} {[%emt 00:01:22]} e6 {[%clk 00:17:21]} {[%emt 00:00:20]} 12. Qe2
{[%clk 00:16:22]} {[%emt 00:01:22]} Bd6 {[%clk 00:16:02]} {[%emt 00:01:24]} 13.
Nxg6 {[%clk 00:16:25]} {[%emt 00:00:01]} Bxh2+ {[%clk 00:15:45]} {[%emt
00:00:22]} 14. Kh1 {[%clk 00:16:19]} {[%emt 00:00:10]} hxg6 {[%clk 00:15:48]}
{[%emt 00:00:03]} 15. g4 {[%clk 00:15:34]} {[%emt 00:00:50]} Qg3 {[%clk
00:14:26]} {[%emt 00:01:27]} 16. Qg2 {[%clk 00:15:18]} {[%emt 00:00:21]} Qd6
{[%clk 00:12:51]} {[%emt 00:01:40]} 17. Qe2 {[%clk 00:12:56]} {[%emt 00:02:27]}
Kd7 {[%clk 00:09:05]} {[%emt 00:03:52]} 18. Kg2 {[%clk 00:12:34]} {[%emt
00:00:27]} Qg3+ {[%emt 00:00:07]} 0-1

[Event "MČR juniorů a juniorek v rapid šachu 2023"]
[Site "Czech Republic"]
[Date "2023.09.23"]
[Round "5.18"]
[White "Mrazek, Adam"]
[Black "Housa, Vojtech"]
[Result "1-0"]
[TimeControl "20 min + 5 sec per move"]
[WhiteFideId "23725010"]
[BlackFideId "23736364"]
[WhiteElo "1753"]
[BlackElo "1539"]

1. c4 {[%clk 00:20:07]} {[%emt 00:00:02]} Nf6 {[%clk 00:20:07]} {[%emt
00:00:03]} 2. g3 {[%clk 00:20:10]} {[%emt 00:00:03]} g6 {[%clk 00:20:09]}
{[%emt 00:00:03]} 3. Bg2 {[%clk 00:20:12]} {[%emt 00:00:03]} Bg7 {[%clk
00:20:13]} 4. Nc3 {[%clk 00:20:13]} {[%emt 00:00:03]} d6 {[%clk 00:20:17]}
{[%emt 00:00:02]} 5. Nf3 {[%clk 00:20:13]} {[%emt 00:00:04]} O-O {[%clk
00:20:17]} {[%emt 00:00:05]} 6. O-O {[%clk 00:20:16]} {[%emt 00:00:02]} c5
{[%clk 00:20:17]} {[%emt 00:00:05]} 7. d4 {[%clk 00:20:13]} {[%emt 00:00:08]}
cxd4 {[%clk 00:20:01]} {[%emt 00:00:21]} 8. Nxd4 {[%clk 00:20:16]} {[%emt
00:00:02]} a6 {[%clk 00:19:19]} {[%emt 00:00:47]} 9. b3 {[%clk 00:19:38]}
{[%emt 00:00:44]} Qc7 {[%clk 00:18:59]} {[%emt 00:00:25]} 10. Bb2 {[%clk
00:19:38]} {[%emt 00:00:04]} Nc6 {[%clk 00:19:02]} {[%emt 00:00:02]} 11. Rc1
{[%clk 00:18:29]} {[%emt 00:01:14]} Rb8 {[%clk 00:18:40]} {[%emt 00:00:28]} 12.
Nd5 {[%clk 00:16:35]} {[%emt 00:01:58]} Qd7 {[%clk 00:17:32]} {[%emt 00:01:13]}
13. Nxc6 {[%clk 00:16:36]} {[%emt 00:00:04]} bxc6 {[%clk 00:17:22]} {[%emt
00:00:15]} 14. Nxf6+ {[%clk 00:16:38]} {[%emt 00:00:03]} Bxf6 {[%clk 00:17:08]}
{[%emt 00:00:19]} 15. Bxf6 {[%clk 00:16:41]} {[%emt 00:00:02]} exf6 {[%clk
00:17:11]} {[%emt 00:00:02]} 16. Qd4 {[%clk 00:16:43]} {[%emt 00:00:04]} f5
{[%clk 00:17:06]} {[%emt 00:00:09]} 17. Rfd1 {[%clk 00:16:42]} {[%emt
00:00:05]} Rd8 {[%clk 00:17:04]} {[%emt 00:00:07]} 18. Rd2 {[%clk 00:15:50]}
{[%emt 00:00:58]} c5 {[%clk 00:16:25]} {[%emt 00:00:45]} 19. Qf6 {[%clk
00:14:52]} {[%emt 00:01:03]} Rb6 {[%clk 00:15:19]} {[%emt 00:01:11]} 20. Rcd1
{[%clk 00:14:49]} {[%emt 00:00:08]} Qe6 {[%clk 00:14:56]} {[%emt 00:00:27]} 21.
Qxd8+ {[%clk 00:14:44]} {[%emt 00:00:10]} 1-0